[Event "Titled Tuesday Blitz March 07 Late 2023"]
[White "Dudzinski, Pawel"]
[Black "Fishbein, Alexander"]
[WhiteFideId "1117890"]
[BlackFideId "2000377"]
[WhiteElo "2099"]
[BlackElo "2415"]
[Result "0-1"]
[Round "08"]
[TimeControl "180+2"]
[Date "2023.03.07"]
[WhiteClock "0:00:01"]
[BlackClock "0:01:40"]

1. e4 {[%clk 0:03:00]}  e5 {[%clk 0:02:55]} 2. Nf3 {[%clk 0:03:00]}  Nc6 {[%clk 0:02:54]} 3. d4 {[%clk 0:03:01]}  exd4 {[%clk 0:02:54]} 4. Nxd4 {[%clk 0:03:01]}  Nf6 {[%clk 0:02:51]} 5. Nxc6 {[%clk 0:03:00]}  bxc6 {[%clk 0:02:51]} 6. e5 {[%clk 0:03:00]}  Nd5 {[%clk 0:02:52]} 7. c4 {[%clk 0:02:59]}  Nb6 {[%clk 0:02:51]} 8. b3 {[%clk 0:02:54]}  Bb4+ {[%clk 0:02:51]} 9. Bd2 {[%clk 0:02:51]}  Qe7 {[%clk 0:02:50]} 10. Bxb4 {[%clk 0:02:49]}  Qxb4+ {[%clk 0:02:49]} 11. Qd2 {[%clk 0:02:48]}  Qxd2+ {[%clk 0:02:49]} 12. Nxd2 {[%clk 0:02:41]}  O-O {[%clk 0:02:50]} 13. O-O-O {[%clk 0:02:27]}  d6 {[%clk 0:02:48]} 14. exd6 {[%clk 0:02:23]}  cxd6 {[%clk 0:02:48]} 15. Be2 {[%clk 0:02:07]}  d5 {[%clk 0:02:42]} 16. cxd5 {[%clk 0:02:06]}  cxd5 {[%clk 0:02:40]} 17. Bf3 {[%clk 0:02:05]}  Bf5 {[%clk 0:02:39]} 18. Kb2 {[%clk 0:02:04]}  Rac8 {[%clk 0:02:37]} 19. Rc1 {[%clk 0:02:04]}  d4 {[%clk 0:02:36]} 20. Rxc8 {[%clk 0:01:58]}  Rxc8 {[%clk 0:02:35]} 21. Rc1 {[%clk 0:01:58]}  Rxc1 {[%clk 0:02:33]} 22. Kxc1 {[%clk 0:01:59]}  Kf8 {[%clk 0:02:32]} 23. Be4 {[%clk 0:01:54]}  Bxe4 {[%clk 0:02:28]} 24. Nxe4 {[%clk 0:01:55]}  Ke7 {[%clk 0:02:27]} 25. Kd2 {[%clk 0:01:53]}  Ke6 {[%clk 0:02:28]} 26. Kd3 {[%clk 0:01:48]}  Kd5 {[%clk 0:02:25]} 27. Ng5 {[%clk 0:01:46]}  Nd7 {[%clk 0:02:21]} 28. Nxf7 {[%clk 0:01:35]}  Nc5+ {[%clk 0:02:21]} 29. Ke2 {[%clk 0:01:26]}  Ne6 {[%clk 0:02:20]} 30. g3 {[%clk 0:01:11]}  h6 {[%clk 0:02:20]} 31. Kd3 {[%clk 0:00:41]}  Nc5+ {[%clk 0:02:20]} 32. Ke2 {[%clk 0:00:41]}  Ne4 {[%clk 0:02:20]} 33. a3 {[%clk 0:00:37]}  Nc5 {[%clk 0:02:20]} 34. b4 {[%clk 0:00:30]}  Ne4 {[%clk 0:02:18]} 35. f3 {[%clk 0:00:29]}  Nc3+ {[%clk 0:02:15]} 36. Kd3 {[%clk 0:00:29]}  Na4 {[%clk 0:02:13]} 37. Nd8 {[%clk 0:00:28]}  Nb2+ {[%clk 0:02:13]} 38. Kc2 {[%clk 0:00:26]}  Nc4 {[%clk 0:02:13]} 39. Kb3 {[%clk 0:00:23]}  Nd2+ {[%clk 0:02:11]} 40. Kc2 {[%clk 0:00:23]}  Nxf3 {[%clk 0:02:11]} 41. Nb7 {[%clk 0:00:23]}  Nxh2 {[%clk 0:02:06]} 42. Nc5 {[%clk 0:00:20]}  Nf1 {[%clk 0:02:04]} 43. g4 {[%clk 0:00:20]}  Ne3+ {[%clk 0:02:04]} 44. Kd3 {[%clk 0:00:20]}  Nxg4 {[%clk 0:02:04]} 45. Nb3 {[%clk 0:00:18]}  Ne5+ {[%clk 0:02:04]} 46. Ke2 {[%clk 0:00:18]}  g5 {[%clk 0:02:00]} 47. Nd2 {[%clk 0:00:16]}  g4 {[%clk 0:02:00]} 48. a4 {[%clk 0:00:15]}  h5 {[%clk 0:02:00]} 49. b5 {[%clk 0:00:16]}  h4 {[%clk 0:02:00]} 50. a5 {[%clk 0:00:16]}  h3 {[%clk 0:02:00]} 51. Nf1 {[%clk 0:00:14]}  d3+ {[%clk 0:02:00]} 52. Ke3 {[%clk 0:00:14]}  h2 {[%clk 0:01:51]} 53. Nxh2 {[%clk 0:00:14]}  g3 {[%clk 0:01:51]} 54. b6 {[%clk 0:00:04]}  axb6 {[%clk 0:01:47]} 55. a6 {[%clk 0:00:02]}  Nc6 {[%clk 0:01:45]} 56. Nf3 {[%clk 0:00:02]}  g2 {[%clk 0:01:40]} 57. Kxd3 {[%clk 0:00:02]}  Ne5+ {[%clk 0:01:40]} 58. Nxe5 {[%clk 0:00:01]}  g1=Q {[%clk 0:01:40]} 0-1


[Site "https://www.chess.com"]

[Event "Titled Tuesday Blitz March 07 Late 2023"]
[White "Flores Quillas, Diego Saul Rodri"]
[Black "Womacka, Mathias"]
[WhiteFideId "3822508"]
[BlackFideId "4611390"]
[WhiteElo "2326"]
[BlackElo "2377"]
[Result "1-0"]
[Round "08"]
[TimeControl "180+2"]
[Date "2023.03.07"]
[WhiteClock "0:00:34"]
[BlackClock "0:00:16"]

1. e4 {[%clk 0:03:00]}  c5 {[%clk 0:02:58]} 2. Nf3 {[%clk 0:03:00]}  d6 {[%clk 0:02:58]} 3. d4 {[%clk 0:02:59]}  cxd4 {[%clk 0:02:59]} 4. Nxd4 {[%clk 0:03:00]}  Nf6 {[%clk 0:02:59]} 5. f3 {[%clk 0:02:59]}  e6 {[%clk 0:02:58]} 6. c4 {[%clk 0:02:59]}  Be7 {[%clk 0:02:57]} 7. Nc3 {[%clk 0:02:59]}  O-O {[%clk 0:02:56]} 8. Be3 {[%clk 0:02:59]}  Nbd7 {[%clk 0:02:56]} 9. Qd2 {[%clk 0:02:58]}  d5 {[%clk 0:02:55]} 10. exd5 {[%clk 0:02:24]}  exd5 {[%clk 0:02:56]} 11. O-O-O {[%clk 0:02:24]}  Nb6 {[%clk 0:02:43]} 12. Ndb5 {[%clk 0:02:18]}  Nxc4 {[%clk 0:02:29]} 13. Bxc4 {[%clk 0:02:18]}  dxc4 {[%clk 0:02:30]} 14. Qxd8 {[%clk 0:02:18]}  Rxd8 {[%clk 0:02:30]} 15. Nc7 {[%clk 0:02:16]}  Bf5 {[%clk 0:02:17]} 16. Nxa8 {[%clk 0:02:11]}  Rxa8 {[%clk 0:02:18]} 17. g4 {[%clk 0:02:06]}  Bd3 {[%clk 0:02:11]} 18. Rhe1 {[%clk 0:02:05]}  Kf8 {[%clk 0:02:02]} 19. Bd4 {[%clk 0:01:52]}  a6 {[%clk 0:01:56]} 20. h4 {[%clk 0:01:33]}  b5 {[%clk 0:01:53]} 21. g5 {[%clk 0:01:29]}  Nh5 {[%clk 0:01:50]} 22. Nd5 {[%clk 0:01:29]}  Bd6 {[%clk 0:01:48]} 23. Be5 {[%clk 0:01:30]}  Rd8 {[%clk 0:01:41]} 24. Bxd6+ {[%clk 0:00:57]}  Rxd6 {[%clk 0:01:42]} 25. Nb4 {[%clk 0:00:58]}  Nf4 {[%clk 0:01:37]} 26. Nxd3 {[%clk 0:00:55]}  Nxd3+ {[%clk 0:01:21]} 27. Kb1 {[%clk 0:00:55]}  h6 {[%clk 0:01:07]} 28. Re4 {[%clk 0:00:52]}  hxg5 {[%clk 0:01:01]} 29. hxg5 {[%clk 0:00:52]}  g6 {[%clk 0:01:01]} 30. b3 {[%clk 0:00:50]}  Rc6 {[%clk 0:00:54]} 31. a3 {[%clk 0:00:46]}  Rc5 {[%clk 0:00:49]} 32. bxc4 {[%clk 0:00:42]}  bxc4 {[%clk 0:00:50]} 33. Kc2 {[%clk 0:00:41]}  Rxg5 {[%clk 0:00:49]} 34. Rxc4 {[%clk 0:00:41]}  Ne5 {[%clk 0:00:47]} 35. Rc8+ {[%clk 0:00:37]}  Kg7 {[%clk 0:00:47]} 36. f4 {[%clk 0:00:37]}  Rg2+ {[%clk 0:00:45]} 37. Rd2 {[%clk 0:00:38]}  Rxd2+ {[%clk 0:00:42]} 38. Kxd2 {[%clk 0:00:38]}  Nd7 {[%clk 0:00:38]} 39. Rc6 {[%clk 0:00:39]}  a5 {[%clk 0:00:38]} 40. Ra6 {[%clk 0:00:39]}  Nc5 {[%clk 0:00:37]} 41. Rc6 {[%clk 0:00:35]}  Ne6 {[%clk 0:00:35]} 42. Ke3 {[%clk 0:00:35]}  Kf6 {[%clk 0:00:35]} 43. Ra6 {[%clk 0:00:35]}  Kf5 {[%clk 0:00:21]} 44. Rxa5+ {[%clk 0:00:35]}  Kg4 {[%clk 0:00:22]} 45. Ra4 {[%clk 0:00:33]}  f5 {[%clk 0:00:21]} 46. Rc4 {[%clk 0:00:33]}  g5 {[%clk 0:00:20]} 47. fxg5+ {[%clk 0:00:34]}  f4+ {[%clk 0:00:20]} 48. Kf2 {[%clk 0:00:33]}  Nxg5 {[%clk 0:00:20]} 49. a4 {[%clk 0:00:34]}  Kf5 {[%clk 0:00:16]} 50. a5 {[%clk 0:00:33]}  Ne4+ {[%clk 0:00:16]} 51. Rxe4 {[%clk 0:00:33]}  Kxe4 {[%clk 0:00:16]} 52. a6 {[%clk 0:00:34]} 1-0


[Site "https://www.chess.com"]

[Event "Titled Tuesday Blitz March 07 Late 2023"]
[White "Leiva, Gianmarco"]
[Black "Slade, Theodore"]
[WhiteFideId "3804399"]
[BlackFideId "426547"]
[WhiteElo "2345"]
[BlackElo "1964"]
[Result "0-1"]
[Round "08"]
[TimeControl "180+2"]
[Date "2023.03.07"]
[WhiteClock "0:00:34"]
[BlackClock "0:00:24"]

1. e4 {[%clk 0:03:00]}  e5 {[%clk 0:03:00]} 2. Nf3 {[%clk 0:03:00]}  Nc6 {[%clk 0:03:01]} 3. Bc4 {[%clk 0:02:58]}  Bc5 {[%clk 0:03:01]} 4. O-O {[%clk 0:02:59]}  Nf6 {[%clk 0:03:01]} 5. d3 {[%clk 0:02:59]}  O-O {[%clk 0:03:01]} 6. Re1 {[%clk 0:02:58]}  Ng4 {[%clk 0:03:01]} 7. Re2 {[%clk 0:02:57]}  Kh8 {[%clk 0:03:00]} 8. h3 {[%clk 0:02:49]}  f5 {[%clk 0:03:00]} 9. exf5 {[%clk 0:02:41]}  Nxf2 {[%clk 0:02:57]} 10. Rxf2 {[%clk 0:02:39]}  d5 {[%clk 0:02:54]} 11. Bb5 {[%clk 0:02:37]}  Bxf2+ {[%clk 0:02:42]} 12. Kxf2 {[%clk 0:02:36]}  Bxf5 {[%clk 0:02:33]} 13. Bxc6 {[%clk 0:02:29]}  bxc6 {[%clk 0:02:32]} 14. Kg1 {[%clk 0:02:26]}  e4 {[%clk 0:02:27]} 15. Nd4 {[%clk 0:02:18]}  exd3 {[%clk 0:02:21]} 16. Nxf5 {[%clk 0:02:17]}  Rxf5 {[%clk 0:02:21]} 17. Qxd3 {[%clk 0:02:10]}  Qf6 {[%clk 0:02:20]} 18. Be3 {[%clk 0:02:10]}  Qxb2 {[%clk 0:02:11]} 19. Bd4 {[%clk 0:02:06]}  Qc1+ {[%clk 0:02:09]} 20. Kh2 {[%clk 0:02:02]}  Qf4+ {[%clk 0:02:02]} 21. Kg1 {[%clk 0:02:01]}  Qc1+ {[%clk 0:01:58]} 22. Kh2 {[%clk 0:02:01]}  Qf4+ {[%clk 0:01:59]} 23. g3 {[%clk 0:01:58]}  Qf1 {[%clk 0:01:47]} 24. Nd2 {[%clk 0:01:58]}  Qxd3 {[%clk 0:01:41]} 25. cxd3 {[%clk 0:01:58]}  Re8 {[%clk 0:01:41]} 26. Kg1 {[%clk 0:01:56]}  Re2 {[%clk 0:01:39]} 27. Nf1 {[%clk 0:01:55]}  a6 {[%clk 0:01:35]} 28. a4 {[%clk 0:01:48]}  Rf3 {[%clk 0:01:28]} 29. Ra3 {[%clk 0:01:33]}  Re1 {[%clk 0:01:20]} 30. Bf2 {[%clk 0:01:33]}  Rd1 {[%clk 0:01:18]} 31. Rc3 {[%clk 0:01:29]}  Rfxd3 {[%clk 0:01:13]} 32. Rxc6 {[%clk 0:01:29]}  Ra3 {[%clk 0:01:10]} 33. Rxc7 {[%clk 0:01:21]}  h6 {[%clk 0:01:10]} 34. Kg2 {[%clk 0:01:16]}  Rxa4 {[%clk 0:01:04]} 35. Ne3 {[%clk 0:01:16]}  Rd2 {[%clk 0:01:03]} 36. Ng4 {[%clk 0:00:42]}  h5 {[%clk 0:00:53]} 37. Ne5 {[%clk 0:00:42]}  Raa2 {[%clk 0:00:48]} 38. Rf7 {[%clk 0:00:41]}  a5 {[%clk 0:00:40]} 39. g4 {[%clk 0:00:41]}  hxg4 {[%clk 0:00:38]} 40. hxg4 {[%clk 0:00:42]}  a4 {[%clk 0:00:36]} 41. Kg3 {[%clk 0:00:42]}  Rxf2 {[%clk 0:00:30]} 42. Rxf2 {[%clk 0:00:32]}  Rxf2 {[%clk 0:00:30]} 43. Kxf2 {[%clk 0:00:33]}  a3 {[%clk 0:00:30]} 44. Ng6+ {[%clk 0:00:34]}  Kh7 {[%clk 0:00:26]} 45. Nf8+ {[%clk 0:00:34]}  Kg8 {[%clk 0:00:24]} 0-1


[Site "https://www.chess.com"]

[Event "Titled Tuesday Blitz March 07 Late 2023"]
[White "Blomqvist, Erik"]
[Black "Przybylski, Wojciech"]
[WhiteFideId "1709437"]
[BlackFideId "1117599"]
[WhiteElo "2436"]
[BlackElo "2222"]
[Result "1-0"]
[Round "08"]
[TimeControl "180+2"]
[Date "2023.03.07"]
[WhiteClock "0:00:07"]
[BlackClock "0:00:05"]

1. e4 {[%clk 0:03:00]}  e5 {[%clk 0:02:55]} 2. Nf3 {[%clk 0:03:00]}  Nc6 {[%clk 0:02:55]} 3. Bb5 {[%clk 0:03:01]}  Nf6 {[%clk 0:02:55]} 4. O-O {[%clk 0:02:58]}  Nxe4 {[%clk 0:02:55]} 5. Re1 {[%clk 0:02:58]}  Nd6 {[%clk 0:02:55]} 6. a4 {[%clk 0:02:58]}  Be7 {[%clk 0:02:55]} 7. Nc3 {[%clk 0:02:58]}  O-O {[%clk 0:02:55]} 8. d4 {[%clk 0:02:56]}  Nxd4 {[%clk 0:02:52]} 9. Nxd4 {[%clk 0:02:55]}  exd4 {[%clk 0:02:52]} 10. Nd5 {[%clk 0:02:55]}  Bf6 {[%clk 0:02:52]} 11. Qg4 {[%clk 0:02:37]}  Nxb5 {[%clk 0:02:42]} 12. axb5 {[%clk 0:02:30]}  d6 {[%clk 0:02:41]} 13. Qg3 {[%clk 0:02:11]}  Be6 {[%clk 0:02:41]} 14. Nf4 {[%clk 0:01:47]}  Be5 {[%clk 0:02:39]} 15. Nxe6 {[%clk 0:01:38]}  fxe6 {[%clk 0:02:33]} 16. f4 {[%clk 0:01:38]}  Bf6 {[%clk 0:02:29]} 17. Rxe6 {[%clk 0:01:38]}  Qd7 {[%clk 0:02:28]} 18. Qb3 {[%clk 0:01:37]}  Qf7 {[%clk 0:02:12]} 19. Bd2 {[%clk 0:01:25]}  h6 {[%clk 0:02:03]} 20. Rae1 {[%clk 0:01:17]}  Kh8 {[%clk 0:02:00]} 21. g4 {[%clk 0:01:07]}  Bh4 {[%clk 0:01:26]} 22. R1e2 {[%clk 0:01:02]}  Kg8 {[%clk 0:01:11]} 23. Qh3 {[%clk 0:00:52]}  Bd8 {[%clk 0:00:45]} 24. Qd3 {[%clk 0:00:20]}  a6 {[%clk 0:00:38]} 25. b6 {[%clk 0:00:20]}  Bf6 {[%clk 0:00:26]} 26. bxc7 {[%clk 0:00:14]}  Qxc7 {[%clk 0:00:13]} 27. g5 {[%clk 0:00:11]}  hxg5 {[%clk 0:00:09]} 28. fxg5 {[%clk 0:00:12]}  Be5 {[%clk 0:00:05]} 29. Qh3 {[%clk 0:00:07]} 1-0


[Site "https://www.chess.com"]

[Event "Titled Tuesday Blitz March 07 Late 2023"]
[White "Papayan, Oleg"]
[Black "Filgueira, Hernan"]
[WhiteFideId "4193911"]
[BlackFideId "101770"]
[WhiteElo "2153"]
[BlackElo "2363"]
[Result "1/2-1/2"]
[Round "08"]
[TimeControl "180+2"]
[Date "2023.03.07"]
[WhiteClock "0:00:41"]
[BlackClock "0:01:31"]

1. e4 {[%clk 0:03:00]}  e5 {[%clk 0:02:56]} 2. Nf3 {[%clk 0:03:01]}  Nf6 {[%clk 0:02:54]} 3. d4 {[%clk 0:02:56]}  Nxe4 {[%clk 0:02:53]} 4. Bd3 {[%clk 0:02:54]}  d5 {[%clk 0:02:52]} 5. Nxe5 {[%clk 0:02:55]}  Nd7 {[%clk 0:02:52]} 6. Nxd7 {[%clk 0:02:54]}  Bxd7 {[%clk 0:02:53]} 7. O-O {[%clk 0:02:48]}  Be7 {[%clk 0:02:52]} 8. Nc3 {[%clk 0:02:48]}  Nf6 {[%clk 0:02:48]} 9. Re1 {[%clk 0:02:40]}  O-O {[%clk 0:02:47]} 10. Bf4 {[%clk 0:02:40]}  c6 {[%clk 0:02:41]} 11. Ne2 {[%clk 0:02:34]}  Re8 {[%clk 0:02:31]} 12. Ng3 {[%clk 0:02:32]}  Bg4 {[%clk 0:02:29]} 13. f3 {[%clk 0:02:30]}  Be6 {[%clk 0:02:29]} 14. Nf5 {[%clk 0:02:17]}  Bxf5 {[%clk 0:02:27]} 15. Bxf5 {[%clk 0:02:18]}  Qb6 {[%clk 0:02:27]} 16. Qd3 {[%clk 0:01:42]}  g6 {[%clk 0:02:22]} 17. Bh3 {[%clk 0:01:40]}  Nh5 {[%clk 0:02:12]} 18. Be5 {[%clk 0:01:32]}  Bf6 {[%clk 0:02:10]} 19. Bxf6 {[%clk 0:01:17]}  Nxf6 {[%clk 0:02:09]} 20. b3 {[%clk 0:01:09]}  Qb4 {[%clk 0:01:49]} 21. c3 {[%clk 0:01:08]}  Qd6 {[%clk 0:01:49]} 22. Re3 {[%clk 0:00:56]}  Rxe3 {[%clk 0:01:48]} 23. Qxe3 {[%clk 0:00:56]}  Re8 {[%clk 0:01:48]} 24. Qd2 {[%clk 0:00:54]}  Qe7 {[%clk 0:01:45]} 25. Kf2 {[%clk 0:00:49]}  Qd6 {[%clk 0:01:45]} 26. g3 {[%clk 0:00:50]}  Kg7 {[%clk 0:01:41]} 27. Re1 {[%clk 0:00:48]}  Kf8 {[%clk 0:01:39]} 28. Qh6+ {[%clk 0:00:47]}  Kg8 {[%clk 0:01:38]} 29. Rxe8+ {[%clk 0:00:46]}  Nxe8 {[%clk 0:01:37]} 30. Qe3 {[%clk 0:00:43]}  Kf8 {[%clk 0:01:36]} 31. Bf1 {[%clk 0:00:42]}  Nf6 {[%clk 0:01:33]} 32. Bd3 {[%clk 0:00:41]}  Qe7 {[%clk 0:01:31]} 1/2-1/2


[Site "https://www.chess.com"]

[Event "Titled Tuesday Blitz March 07 Late 2023"]
[White "Kaganskiy, Gleb"]
[Black "Paszewski, Mateusz"]
[WhiteFideId "4132025"]
[BlackFideId "1141058"]
[WhiteElo "2165"]
[BlackElo "2223"]
[Result "0-1"]
[Round "08"]
[TimeControl "180+2"]
[Date "2023.03.07"]
[WhiteClock "0:02:08"]
[BlackClock "0:02:11"]

1. e4 {[%clk 0:03:00]}  c5 {[%clk 0:02:59]} 2. Nf3 {[%clk 0:03:00]}  Nc6 {[%clk 0:03:00]} 3. d4 {[%clk 0:02:59]}  cxd4 {[%clk 0:03:01]} 4. Nxd4 {[%clk 0:02:59]}  e5 {[%clk 0:03:00]} 5. Nb5 {[%clk 0:02:59]}  a6 {[%clk 0:03:00]} 6. Nd6+ {[%clk 0:02:57]}  Bxd6 {[%clk 0:03:00]} 7. Qxd6 {[%clk 0:02:57]}  Qf6 {[%clk 0:03:00]} 8. Qd2 {[%clk 0:02:54]}  Nge7 {[%clk 0:02:31]} 9. Nc3 {[%clk 0:02:53]}  O-O {[%clk 0:02:32]} 10. Bc4 {[%clk 0:02:52]}  b5 {[%clk 0:02:31]} 11. Bb3 {[%clk 0:02:51]}  Nd4 {[%clk 0:02:30]} 12. O-O {[%clk 0:02:48]}  Bb7 {[%clk 0:02:30]} 13. Nd5 {[%clk 0:02:44]}  Bxd5 {[%clk 0:02:24]} 14. Bxd5 {[%clk 0:02:45]}  Nxd5 {[%clk 0:02:20]} 15. exd5 {[%clk 0:02:46]}  Qg6 {[%clk 0:02:20]} 16. f4 {[%clk 0:02:36]}  Nxc2 {[%clk 0:02:15]} 17. f5 {[%clk 0:02:35]}  Qb6+ {[%clk 0:02:15]} 18. Qf2 {[%clk 0:02:22]}  Qxf2+ {[%clk 0:02:14]} 19. Rxf2 {[%clk 0:02:21]}  Nxa1 {[%clk 0:02:15]} 20. b3 {[%clk 0:02:13]}  Rfc8 {[%clk 0:02:12]} 21. Bb2 {[%clk 0:02:13]}  Nc2 {[%clk 0:02:12]} 22. Bxe5 {[%clk 0:02:12]}  f6 {[%clk 0:02:12]} 23. Bd6 {[%clk 0:02:10]}  Ne3 {[%clk 0:02:11]} 24. Bb4 {[%clk 0:02:07]}  Rc1+ {[%clk 0:02:11]} 25. Rf1 {[%clk 0:02:08]}  Rxf1# {[%clk 0:02:11]} 0-1


[Site "https://www.chess.com"]

[Event "Titled Tuesday Blitz March 07 Late 2023"]
[White "Yano, William Jorge Froes"]
[Black "Janaszak, Dawid"]
[WhiteFideId "2112949"]
[BlackFideId "1119206"]
[WhiteElo "2122"]
[BlackElo "2220"]
[Result "0-1"]
[Round "08"]
[TimeControl "180+2"]
[Date "2023.03.07"]
[WhiteClock "0:00:15"]
[BlackClock "0:00:07"]

1. e4 {[%clk 0:03:00]}  e5 {[%clk 0:03:00]} 2. Nc3 {[%clk 0:03:00]}  Bc5 {[%clk 0:02:58]} 3. Bc4 {[%clk 0:02:58]}  d6 {[%clk 0:02:55]} 4. d3 {[%clk 0:02:44]}  Nc6 {[%clk 0:02:50]} 5. Nge2 {[%clk 0:02:37]}  Be6 {[%clk 0:02:45]} 6. O-O {[%clk 0:02:33]}  Qh4 {[%clk 0:02:43]} 7. Ng3 {[%clk 0:02:06]}  Nf6 {[%clk 0:02:40]} 8. Bxe6 {[%clk 0:01:46]}  fxe6 {[%clk 0:02:40]} 9. h3 {[%clk 0:01:29]}  Qxg3 {[%clk 0:02:37]} 10. Na4 {[%clk 0:01:26]}  Qh4 {[%clk 0:02:29]} 11. Nxc5 {[%clk 0:01:26]}  dxc5 {[%clk 0:02:30]} 12. f4 {[%clk 0:01:26]}  O-O {[%clk 0:02:23]} 13. c3 {[%clk 0:01:21]}  Nh5 {[%clk 0:02:16]} 14. f5 {[%clk 0:01:19]}  exf5 {[%clk 0:02:12]} 15. exf5 {[%clk 0:01:19]}  Nf4 {[%clk 0:02:09]} 16. Qb3+ {[%clk 0:01:17]}  Kh8 {[%clk 0:02:08]} 17. Qxb7 {[%clk 0:01:17]}  Ne7 {[%clk 0:01:46]} 18. Qxc7 {[%clk 0:00:51]}  Nxf5 {[%clk 0:00:13]} 19. Qxe5 {[%clk 0:00:41]}  Ng6 {[%clk 0:00:11]} 20. Qxc5 {[%clk 0:00:38]}  Ng3 {[%clk 0:00:09]} 21. Bg5 {[%clk 0:00:35]}  Ne2+ {[%clk 0:00:08]} 22. Kh2 {[%clk 0:00:33]}  Qg3+ {[%clk 0:00:08]} 23. Kh1 {[%clk 0:00:33]}  Qxd3 {[%clk 0:00:08]} 24. Rxf8+ {[%clk 0:00:32]}  Rxf8 {[%clk 0:00:08]} 25. Re1 {[%clk 0:00:28]}  h6 {[%clk 0:00:07]} 26. Be7 {[%clk 0:00:25]}  Nxe7 {[%clk 0:00:06]} 27. Qxe7 {[%clk 0:00:24]}  Rf2 {[%clk 0:00:06]} 28. Qe8+ {[%clk 0:00:20]}  Kh7 {[%clk 0:00:06]} 29. Qc6 {[%clk 0:00:20]}  Nf4 {[%clk 0:00:04]} 30. Rg1 {[%clk 0:00:19]}  Nxh3 {[%clk 0:00:03]} 31. Re1 {[%clk 0:00:15]}  Nf4 {[%clk 0:00:03]} 32. Qe4+ {[%clk 0:00:15]}  Qxe4 {[%clk 0:00:03]} 33. Rxe4 {[%clk 0:00:16]}  Nxg2 {[%clk 0:00:03]} 34. Kg1 {[%clk 0:00:16]}  Rxb2 {[%clk 0:00:03]} 35. Rb4 {[%clk 0:00:16]}  Rxa2 {[%clk 0:00:02]} 36. Rb7 {[%clk 0:00:17]}  Ne3 {[%clk 0:00:02]} 37. Re7 {[%clk 0:00:16]}  Nf5 {[%clk 0:00:03]} 38. Re5 {[%clk 0:00:16]}  Kg6 {[%clk 0:00:03]} 39. Rc5 {[%clk 0:00:16]}  Ra1+ {[%clk 0:00:03]} 40. Kf2 {[%clk 0:00:16]}  h5 {[%clk 0:00:04]} 41. Kf3 {[%clk 0:00:16]}  a5 {[%clk 0:00:05]} 42. Kf4 {[%clk 0:00:16]}  Rf1+ {[%clk 0:00:05]} 43. Ke4 {[%clk 0:00:15]}  h4 {[%clk 0:00:06]} 44. Rc6+ {[%clk 0:00:15]}  Kg5 {[%clk 0:00:06]} 45. Rc5 {[%clk 0:00:16]}  h3 {[%clk 0:00:06]} 46. Rxa5 {[%clk 0:00:16]}  h2 {[%clk 0:00:07]} 47. Ra8 {[%clk 0:00:15]}  h1=Q+ {[%clk 0:00:07]} 0-1


[Site "https://www.chess.com"]

[Event "Titled Tuesday Blitz March 07 Late 2023"]
[White "Dodaro, Mattia"]
[Black "Pinheiro, Iung Alicio de O."]
[WhiteFideId "28583400"]
[BlackFideId "2104350"]
[WhiteElo "2412"]
[BlackElo "2283"]
[Result "1-0"]
[Round "08"]
[TimeControl "180+2"]
[Date "2023.03.07"]
[WhiteClock "0:00:21"]
[BlackClock "0:00:03"]

1. a3 {[%clk 0:02:54]}  d5 {[%clk 0:02:56]} 2. e3 {[%clk 0:02:53]}  Nf6 {[%clk 0:02:51]} 3. d4 {[%clk 0:02:52]}  Bf5 {[%clk 0:02:50]} 4. Nf3 {[%clk 0:02:52]}  e6 {[%clk 0:02:50]} 5. b4 {[%clk 0:02:52]}  Bd6 {[%clk 0:02:42]} 6. c4 {[%clk 0:02:50]}  c6 {[%clk 0:02:41]} 7. Bb2 {[%clk 0:02:44]}  Ne4 {[%clk 0:02:39]} 8. Nbd2 {[%clk 0:02:43]}  Nd7 {[%clk 0:02:34]} 9. c5 {[%clk 0:02:44]}  Bc7 {[%clk 0:02:34]} 10. Nxe4 {[%clk 0:02:44]}  Bxe4 {[%clk 0:02:31]} 11. Nd2 {[%clk 0:02:45]}  Bg6 {[%clk 0:02:19]} 12. f4 {[%clk 0:02:41]}  Nf6 {[%clk 0:02:05]} 13. Be2 {[%clk 0:02:40]}  Be4 {[%clk 0:01:42]} 14. O-O {[%clk 0:02:37]}  h6 {[%clk 0:01:39]} 15. Nxe4 {[%clk 0:02:07]}  Nxe4 {[%clk 0:01:34]} 16. g3 {[%clk 0:02:02]}  g5 {[%clk 0:01:18]} 17. f5 {[%clk 0:02:03]}  Qe7 {[%clk 0:01:05]} 18. fxe6 {[%clk 0:01:59]}  Qxe6 {[%clk 0:01:01]} 19. Bg4 {[%clk 0:01:56]}  Qe7 {[%clk 0:00:59]} 20. Qf3 {[%clk 0:01:50]}  Nd2 {[%clk 0:00:50]} 21. Qf5 {[%clk 0:01:40]}  Nxf1 {[%clk 0:00:41]} 22. Rxf1 {[%clk 0:01:41]}  O-O {[%clk 0:00:39]} 23. Bh5 {[%clk 0:01:32]}  Kg7 {[%clk 0:00:37]} 24. e4 {[%clk 0:01:29]}  Qe6 {[%clk 0:00:19]} 25. Qf3 {[%clk 0:01:17]}  f5 {[%clk 0:00:15]} 26. exf5 {[%clk 0:01:14]}  Qf6 {[%clk 0:00:16]} 27. Kg2 {[%clk 0:01:02]}  Rae8 {[%clk 0:00:11]} 28. Bxe8 {[%clk 0:01:00]}  Rxe8 {[%clk 0:00:12]} 29. Rf2 {[%clk 0:00:57]}  Re4 {[%clk 0:00:12]} 30. h3 {[%clk 0:00:37]}  a6 {[%clk 0:00:09]} 31. a4 {[%clk 0:00:36]}  Kh7 {[%clk 0:00:08]} 32. g4 {[%clk 0:00:29]}  Bf4 {[%clk 0:00:07]} 33. Re2 {[%clk 0:00:29]}  Qe7 {[%clk 0:00:06]} 34. Rxe4 {[%clk 0:00:28]}  dxe4 {[%clk 0:00:07]} 35. Qb3 {[%clk 0:00:24]}  e3 {[%clk 0:00:04]} 36. Qe6 {[%clk 0:00:25]}  Qxe6 {[%clk 0:00:03]} 37. fxe6 {[%clk 0:00:26]}  Kg6 {[%clk 0:00:03]} 38. Kf3 {[%clk 0:00:21]} 1-0


[Site "https://www.chess.com"]